Cogmind - Beta 17 @@@ ROGUE MODE // 2026.08.17 @ 01:27:56 Player: THN-L0C Result: Destroyed by RS-JF6(R) with Subdweller Machine Gun Performance ------------- Evolutions (0) 0 Regions Visited (2) 400 Robots Destroyed (34) 170 Value Destroyed (687) 687 Prototype IDs (0) 0 Alien Tech Used (0) 0 Bonus (0) 0 TOTAL SCORE: 1257 Bonus ------- None Cogmind --------- Core Integrity 0/250 Matter 25/300 Energy 100/100 System Corruption 0% Temperature Cool (0) Movement Core (350) Ox6 Location -10/Subcaves Parts ------- > --- POWER (1) -------- (None) > --- PROPULSION (2) --- (None) > --- UTILITY (2) ------ Large Storage Unit > --- WEAPON (2) ------- (None) > --- INVENTORY (15) --- Light Ion Engine Flightbrick Humpback Medium Matter Pod (0) Medium Matter Pod (100) Improved Terrain Scanner Seismic Detector Grenade Launcher Peak State ------------ > --- POWER ------------ Ion Engine > --- PROPULSION ------- Light Treads Wheel > --- UTILITY ---------- Large Storage Unit Makeshift Kinetic Plating > --- WEAPON ----------- Light Assault Rifle Grenade Launcher > --- INVENTORY -------- Light Ion Engine Flightbrick Humpback Medium Matter Pod Medium Matter Pod Improved Terrain Scanner Seismic Detector Grenade Launcher Mining Laser Flamer [Rating: 14] Favorites ----------- Power Ion Engine Engine Ion Engine Propulsion Light Treads Treads Light Treads Wheel Wheel Utility Large Storage Unit Device Seismic Detector Storage Large Storage Unit Protection Makeshift Kinetic Plating Weapon Light Assault Rifle Energy Gun Medium Laser Ballistic Gun Light Assault Rifle Launcher Grenade Launcher Special Weapon Mining Laser Build | -11 -10 -10 ------- Run | Yrd Mat Sub Slots Evolved . | . . . Power . | . . . Propulsion . | . . . Utility . | . . . Weapon . | . . . Parts Attached 19 | 7 5 7 Power 2 | 2 . . Engine 2 | 2 . . Core . | . . . Reactor . | . . . Propulsion 3 | 2 . 1 Treads 2 | 2 . . Leg . | . . . Wheel 1 | . . 1 Hover . | . . . Flight . | . . . Utility 5 | 1 3 1 Device 1 | . 1 . Storage 3 | 1 2 . Processor . | . . . Hackware . | . . . Protection 1 | . . 1 Artifact . | . . . Weapon 9 | 2 2 5 Energy Gun 1 | 1 . . Energy Cannon . | . . . Ballistic Gun 3 | 1 . 2 Ballistic Cannon . | . . . Launcher 3 | . 2 1 Special Weapon 2 | . . 2 Impact Weapon . | . . . Slashing Weapon . | . . . Piercing Weapon . | . . . Special Melee Weapon . | . . . Unidentified Prototypes . | . . . Parts Lost 11 | . . 11 Power 1 | . . 1 Propulsion 3 | . . 3 Utility 1 | . . 1 Weapon 6 | . . 6 Highest Loss Streak 6 | . . 6 To Critical Strikes . | . . . Average Backups 8 | 3 8 9 Power . | . 1 1 Propulsion . | . 1 . Utility 4 | 1 4 4 Weapon 2 | . 2 2 Tool/Special . | . . . Unused Backups 6 | . 1 5 Power . | . . . Propulsion 1 | . . 1 Utility 5 | . 1 4 Weapon . | . . . Tool/Special . | . . . Average Slot Usage (%) 89 | . 97 83 Engine 13 | . 14 13 Treads 18 | . 28 9 Wheel 2 | . . 4 Device 8 | . 11 5 Storage 14 | . 14 14 Protection 4 | . . 8 Ballistic Gun 14 | . 14 14 Launcher 8 | . 13 3 Special Weapon 4 | . . 9 Peak Build Rating 14 | 6 8 14 Average Rating 9 | 5 7 11 On Entrance 4 | . 6 8 Avg Prop Armor Cover (%) 11 | . . 11 Naked Turns . | . . . Heaviest Build 36 | 13 30 36 Greatest Support 40 | 40 40 40 Greatest Overweight (x) 11 | . . 11 Average Overweight (x) 1 | . . 3 Largest Inventory Capacity 15 | 8 15 15 Average Capacity 12 | 7 10 15 Most Carried 14 | 7 10 14 Average Carried 10 | 3 8 12 Final Capacity 15 | 8 15 15 Final Carried 12 | 7 8 12 Class Distribution -------------------- 100% | Mutant Dominant Class ---------------- Mutant | -10/Materials Mutant | -10/Subcaves Resources | -11 -10 -10 ----------- Run | Yrd Mat Sub Matter Collected 548 | 329 127 92 Remotely . | . . . Salvage Created 712 | 213 314 185 Parts 60 | 20 32 8 Haulers Intercepted 1 | . 1 . Recyclers Shooed 1 | 1 . . Parts Field Recycled . | . . . Retrieved Matter . | . . . Parts Self-Destructed 5 | . . 5 Prevented . | . . . Parts Restored . | . . . Kills | -11 -10 -10 ------- Run | Yrd Mat Sub Combat Hostiles Destroyed 22 | . 11 11 Guns 1 | . . 1 AOE 21 | . 11 10 Classes Destroyed 10 | 3 5 2 Worker 3 | 2 1 . Tunneler 4 | 4 . . Hauler 1 | . 1 . Recycler 1 | 1 . . Mechanic 1 | . 1 . Watcher 2 | . 2 . Swarmer 10 | . 6 4 Grunt 5 | . 5 . Artisan 1 | . . 1 Subdweller 7 | . . 7 Best Kill Streak 5 | 2 5 4 Combat Bots Only 4 | . 3 4 Max Kills in Single Turn 3 | 1 3 3 Gunslinging . | . . . Exploded 3 | . 2 3 Melee . | . . . Uniques/NPCs Destroyed . | . . . Combat | -11 -10 -10 -------- Run | Yrd Mat Sub Hostile Shots Fired 87 | . 25 62 Missed 24 | . 8 16 Hits 63 | . 17 46 Projectile 63 | . 17 46 AOE 3 | . . 3 Damage Taken 1326 | . 195 1131 Core 267 | . 32 235 Absorbed by Shields . | . . . Ignored by Resistances 91 | . . 91 Core Remaining (%) 100 | 100 . . Volleys Fired 76 | 13 16 47 Largest 2 | 2 2 2 Hottest 100 | 70 50 100 Shots Fired 110 | 26 23 61 Gun 56 | 26 7 23 Cannon . | . . . Launcher 32 | . 16 16 Special 22 | . . 22 Kinetic 43 | 13 7 23 Thermal 35 | 13 . 22 Explosive 32 | . 16 16 Electromagnetic . | . . . Robot Hit Streak 17 | 6 2 17 Robot Miss Streak 3 | 3 3 1 Penetration Max . | . . . Secondary Targets . | . . . Shots Hit Robots 59 | 15 6 38 Core Hits 54 | 9 25 20 Critical Kills . | . . . Critical Parts Destroyed . | . . . Critical Strikes . | . . . Melee Attacks . | . . . Impact . | . . . Slashing . | . . . Piercing . | . . . Sneak Attacks . | . . . Combat Hostiles . | . . . Follow-up Attacks . | . . . Damage Inflicted 2192 | 157 769 1266 Guns 354 | 157 31 166 Cannons . | . . . Explosions 1831 | . 732 1099 Melee . | . . . Ramming 7 | . 6 1 Kinetic 265 | 68 31 166 Thermal 89 | 89 . . Explosive 1831 | . 732 1099 Electromagnetic . | . . . Impact . | . . . Slashing . | . . . Piercing . | . . . Highest Corruption . | . . . Average Corruption . | . . . Corruption Purged . | . . . Corruption Blocked . | . . . Overload Shots . | . . . Overflow Damage 17 | . 1 16 Projectiles . | . . . Explosions 17 | . 1 16 Melee . | . . . Knockbacks . | . . . Impact . | . . . Kinetic . | . . . Secondary . | . . . Self-Inflicted Damage 216 | . 28 188 Shots 10 | . 2 8 Rammed 9 | . 3 6 Targets Rammed 9 | . 3 6 Kicked . | . . . Crushed . | . . . Highest Temperature 70 | 70 20 . Average Temperature 20 | 26 8 . Received Heat Transfer 117 | . 36 81 Siege Activations . | . . . Martial Activations . | . . . Shielding Activations . | . . . Robots Disrupted . | . . . Combat Hostiles . | . . . Robots Corrupted . | . . . Combat Hostiles . | . . . Parts Fried . | . . . Impact Corruptions . | . . . Robots Melted . | . . . Combat Hostiles . | . . . Parts Melted 2 | 1 . 1 Heat Transferred 259 | 259 . . Parts Sabotaged . | . . . Parts Stolen . | . . . Parts Stripped . | . . . Power Chain Reactions . | . . . Alert | -11 -10 -10 ------- Run | Yrd Mat Sub Maximum Alert Level 1 | . 1 . Low Security (%) 77 | 100 73 . Level 1 22 | . 26 . Level 2 . | . . . Level 3 . | . . . Level 4 . | . . . Level 5 . | . . . High Security . | . . . Max Security . | . . . Peak Influence 324 | 10 324 . Initial . | . . . Average 102 | 1 120 . Influence Increases 569 | 35 424 110 Destroy 0b10 Robot/C 300 | . 220 80 Destroy 0b10 Robot/NC 60 | 35 25 . Destroy Leader 46 | . 46 . Successful Hack 14 | . 14 . Disable Machine 60 | . 60 . Destroy Structure 59 | . 59 . Lose Combat Pursuer 30 | . . 30 Influence Decreases 569 | 35 424 110 Time Decay 549 | 35 424 90 Lost Part 20 | . . 20 Squads Dispatched 2 | . 2 . Investigation 1 | . 1 . Extermination . | . . . Reinforcement 1 | . 1 . Assault . | . . . Garrison . | . . . Intercept . | . . . Searches Triggered . | . . . Construction Impeded . | . . . Haulers Reinforced . | . . . Active Scanning Responses . | . . . Cargo Convoy Interrupts . | . . . Stealth | -11 -10 -10 --------- Run | Yrd Mat Sub Distress Signals 3 | . 3 . Communications Jammed . | . . . Distress Signals . | . . . Times Spotted 33 | . 19 14 Peak Tracking Total 6 | . 6 4 Tactical Retreats 1 | . . 1 Traps | -11 -10 -10 ------- Run | Yrd Mat Sub Traps Triggered . | . . . Indirectly . | . . . Trap Hack Attempts . | . . . Triggered . | . . . Disarmed . | . . . Reprogrammed . | . . . Reused . | . . . Traps Extracted . | . . . Installed . | . . . Triggered . | . . . Machines | -11 -10 -10 ---------- Run | Yrd Mat Sub Machines Disabled 4 | . 4 . Max in Single Turn 1 | . 1 . Machines Repaired . | . . . Machines Dismantled . | . . . Machines Sabotaged . | . . . Overloaded Fab Kills . | . . . Hacking | -11 -10 -10 --------- Run | Yrd Mat Sub Machines Accessed 7 | . 7 . Terminals 7 | . 7 . Fabricators . | . . . Repair Stations . | . . . Recycling Units . | . . . Scanalyzers . | . . . Garrison Access . | . . . Total Hacks 22 | . 22 . Successful 10 | . 10 . Failed 12 | . 12 . Catastrophic 2 | . 2 . Database Lockouts . | . . . Manual 22 | . 22 . Terminals 22 | . 22 . Fabricators . | . . . Repair Stations . | . . . Recycling Units . | . . . Scanalyzers . | . . . Garrison Access . | . . . Terminal Hacks 4 | . 4 . Robot Analysis 2 | . 2 . Terminal Index 1 | . 1 . Recall Investigation 1 | . 1 . Fabricator Hacks . | . . . Repair Station Hacks . | . . . Recycling Unit Hacks . | . . . Scanalyzer . | . . . Garrison Access Hacks . | . . . Unauthorized Hacks 6 | . 6 . Terminals 6 | . 6 . Botnet 1 | . 1 . Skim 5 | . 5 . Fabricators . | . . . Repair Stations . | . . . Recycling Units . | . . . Scanalyzers . | . . . Garrison Access . | . . . Data Cores Recovered . | . . . Used . | . . . Hacking Detections 6 | . 6 . Full Trace Events 1 | . 1 . Feedback Events . | . . . Feedback Blocked . | . . . Robot Schematics Acquired . | . . . Robots Built . | . . . Authchips . | . . . Time . | . . . Total Robot Build Rating . | . . . Part Schematics Acquired . | . . . Parts Built . | . . . Authchips . | . . . Time . | . . . Total Part Build Rating . | . . . Part Studies Acquired . | . . . Parts Repaired . | . . . Time . | . . . Parts Recycled . | . . . Recycled Matter . | . . . Retrieved Matter . | . . . Retrieved Components . | . . . Parts Scanalyzed . | . . . Part Schematics Acquired . | . . . Parts Damaged . | . . . Bothacking | -11 -10 -10 ------------ Run | Yrd Mat Sub Used RIF Installer . | . . . Robots Hacked . | . . . Non-combat . | . . . Combat . | . . . Robot Hacks Applied . | . . . Relay Couplers Released . | . . . Fabnet Peak Effective % . | . . . Robots Rewired . | . . . Allies Hacked . | . . . Hacks Repelled . | . . . Allies | -11 -10 -10 -------- Run | Yrd Mat Sub Total Allies . | . . . Largest Group . | . . . Highest-Rated Group . | . . . Highest-Rated Ally . | . . . Total Orders . | . . . Ally Attacks . | . . . Total Damage . | . . . Kills . | . . . Allies Corrupted . | . . . Allies Melted . | . . . Intel | -11 -10 -10 ------- Run | Yrd Mat Sub Active Infowar (turns) 1546 | . 1003 543 Seismic 1546 | . 1003 543 Robot Analysis Total 2 | . 2 . Derelict Logs Recovered . | . . . Drone Launches . | . . . Drone Recoveries . | . . . Exploration | -11 -10 -10 ------------- Run | Yrd Mat Sub Turns Passed 2910 | 221 1239 1450 Spaces Moved 1172 | 114 509 549 Core 132 | 21 . 111 Treads 767 | 93 509 165 Legs . | . . . Wheels 273 | . . 273 Hover . | . . . Flight . | . . . Fastest Speed 50 | 50 160 110 Average Speed 189 | 139 160 226 Slowest Speed 600 | 160 160 600 Overloaded Moves . | . . . Propulsion Burnouts . | . . . Robots Hopped . | . . . Potential Cave-ins . | . . . Cave-ins Triggered . | . . . Exploration Rate (%) 38 | 4 82 28 Regions Visited 2 Branch Regions 1 Pre-discovered Areas . | . . . Known Exits Taken 1 | . 1 . Unknown Exits Taken 1 | 1 . . Scrap Searched . | . . . Spaces Dug . | . . . Terrain Destroyed 107 | . 63 44 Melee . | . . . Projectile . | . . . AOE 107 | . 63 44 Terrain Rammed . | . . . Walls Destroyed . | . . . Machines Disabled . | . . . Actions | -11 -10 -10 --------- Run | Yrd Mat Sub Total 1691 | 149 911 631 Wait 387 | 10 370 7 Move 1170 | 113 508 549 Hop . | . . . Pick Up 15 | 6 4 5 Fast Attach 7 | 6 1 . Attach 5 | . . 5 Detach . | . . . Swap 17 | 1 4 12 Drop 5 | . 5 . Fire 76 | 13 16 47 Melee . | . . . Ram 6 | . . 6 Kick . | . . . Crush 3 | . 3 . Escape Stasis . | . . . Rewire . | . . . Trap . | . . . Miscellaneous . | . . . Route ------- -11/Scrapyard -10/Materials (discovered 6 exits: *Mat x3 / [*Min x2] / *Sub) -10/Subcaves (discovered 2 exits: Mat x2) History --------- Turn | Location | Event 2 | -11/Scrapyard | Met Revision 17 4 | -11/Scrapyard | Discovered new exit (range 16) 222 | -11/Scrapyard | Entered Materials 222 | -10/Materials | Discovered new exit (range 14) 300 | -10/Materials | Build established: Mutant 333 | -10/Materials | Discovered new exit (range 13) 544 | -10/Materials | Discovered new exit (range 16) 699 | -10/Materials | Discovered new exit (range 5) 849 | -10/Materials | Identified exit to Materials 904 | -10/Materials | Learned location of 2 exits from Mines 949 | -10/Materials | Learned 4 Recycling zone layouts 986 | -10/Materials | Identified exit to Subcaves 1012 | -10/Materials | Learned 4 Recycling zone layouts 1030 | -10/Materials | Learned location of 1 exit from Storage 1137 | -10/Materials | Learned Storage trap positions 1461 | -10/Materials | Entered Subcaves 1462 | -10/Subcaves | Identified exit to Materials 1495 | -10/Subcaves | Shifting Twisted Machinery released Sub. Machine Gun 1541 | -10/Subcaves | Shifting Twisted Machinery released Flamer 1544 | -10/Subcaves | Shifting Twisted Machinery released Mak. Kinetic Plating 1591 | -10/Subcaves | Shifting Twisted Machinery released Flamer 1731 | -10/Subcaves | A Subdweller sparked back to life 1731 | -10/Subcaves | A Subdweller sparked back to life 1731 | -10/Subcaves | A Subdweller sparked back to life 1755 | -10/Subcaves | Found Prototype Flight Unit 1844 | -10/Subcaves | Ambushed by Subdwellers from Twisted Machinery 2016 | -10/Subcaves | A swath of the cavern ceiling suddenly collapsed 2167 | -10/Subcaves | Core integrity fell below 50% 2888 | -10/Subcaves | Core integrity fell below 20% 2911 | -10/Subcaves | Destroyed by RS-JF6(R) with Subdweller Machine Gun Last Messages --------------- 02168_ Destroyed Wheel. 02175_ Lgt. Ion Engine fries itself beyond repair. 02178_ Flight Unit fries itself beyond repair. 02790_ Acquired Sub. Machine Gun. 02833_ RS-JF6(R): "SUBHATE!" 02853_ Slammed into RS-JF6(R). 02855_ Ion Engine destroyed. 02863_ Slammed into RS-JF6(R). 02863_ Destabilizing: System interference. 02863_ Sub. Machine Gun temporarily disabled. 02873_ Sub. Machine Gun destroyed. 02879_ Lgt. Assault Rifle destroyed. 02889_ Flamer destroyed. 02896_ Slammed into RS-JF6(R). 02897_ Mining Laser destroyed. 02901_ Slammed into RS-JF6(R). 02901_ Destabilizing: Core damaged (-2). 02906_ Slammed into RS-JF6(R). 02909_ Mak. Kinetic Plating destroyed. 02910_ Slammed into RS-JF6(R). Map ----- +----------------------------------------------------+ | ???????????????????????????????????????????????? | | ???????????????????????????????????????????????? | | ???????????????????????????????????????????????? | | ???????????????????????????????????????????????? | | ???????????????????????????????????????????????? | | ???????????????????????????????????????????????? | | ???????????????????????????????????????????????? | | ???????????????????????????????????????????????? | | ???? ????????????????????????????????????????? | | ????% %??????% ????????????????????????????????? | | ???? ?????? "???????????????????????????????? | | ???? ?????? " ??????????????????????????????? | | ???? ?????# """?##?####?????????????????????? | | ???? #????? ""?? ## ?????????????????????? | | ??## #????? ""??" ?????????????????????? | | ??# ???## ""??? ?????????????????????? | | ### #??## "#???? #?????????????????????? | | # #?## #?????# ##????????????????????? | | # #?# #??????# #????????????????????? | | # %#?? #???????# ##???????????????????? | | # ???# #???????#" #???????????????????? | | #% #?### ##?????###" ##??????????????????? | | # ### #????## " ##?????????????????? | | ?# #??#### " #?????????????????? | | ?# ##?## ###???????????????? | | ## #### " @ #???????????????? | | # ##""" "" R ###???????????????? | | # ## ## """" ##?????????????????? | | # ## ### """"" #??????????????????? | | # #### " ### "#??????????????????? | | # ## ##?# ## #### "#??????????????????? | | ### ##### ####### ""#####??????????????? | | ###### ## ##???## " ##"#??????????????? | | #####?# " #??????????????? | | " ## ### " ##??????????????? | | # "##"""## """ | ##???????????????? | | ############?#" """""" #????????????????? | | ##????????????# "" """"" #????????????????? | | ##?????????????#"### "" #????????????????? | | ###?????????????#""#?# " #????????????????? | | ????????????????####?# " ##????????????????? | | ??????????????????#### #?????????????????? | | ??????????????????# ### #?????????????????? | | ??????????????????## #?###?????????????????? | | ???????????????????### #?????????????????????? | | ?????????????????????## ##?????????????????????? | | ?????????????????????# ##?????????????????????? | | ?????????????????????## #??####???????????????? | | ?????????????????????# #?? ##??????????????? | | ?????????????????????# ##### #??????????????? | +----------------------------------------------------+ Best States ------------- Heat Dissipation 25 Energy Generation 10 Energy Capacity 250 Matter Stores 300 Matter Capacity 300 Sight Range 16 Terrain Scan Density 10 Armor Coverage 100 Resistance: KI 10 Evasion (%) 50 Recoil Reduction 2 Item Schematics ----------------- None Robot Schematics ------------------ None Fabricated ------------ Nothing Repaired ---------- Nothing Studied --------- None Alien Tech Used ----------------- None Achievements -------------- None Challenges ------------ None Game ------ Seed ConcussiveVisualShovel Manual? 0 Play Time 00:16:33 Cumulative 435.2 hours Start 2026.08.17 @ 01:13:03 End 2026.08.17 @ 01:27:56 Sessions 1 Manual Loads 0 Difficulty Rogue Special Mode None Game No. 321 Rogue 321 Adventurer 0 Explorer 0 Win Type - Total 9 Types 4/0/3/2/0/0/0/0/0/0 Lore% 78 Gallery% 73 Achievement% 55 Wizard Run 0 Options --------- Layout 2 ASCII 0 Keyboard 1 Movement Vi Keybinds 0 Fullscreen 2 Font 32/SmallcapsGlow Map View 77x44 Zoom Use 0% Tactical HUD 1 Map Filters NONE Filters NONE Steam 1 RUN: 479a6a76-fc5f-456c-a98b-3165fe277a83